Workbook

Sheet 1-3 ГОДА
A1: Меню на 02.03.2026
A2: МОУ детский сад № 320 Ежеденевное 20-ти дневное меню ( Зима-осень ) для детей дошкольного возраста 1-3 лет, 12 часового режима функционирования
A3: Прием пищи, наименование блюда | B3: Масса порции | C3: Пищевые вещества | F3: Энергети-ческая ценность, ккал
C4: Белки, г | D4: Жиры, г | E4: Углеводы, г
A5: Завтрак
A6: КАША ЖИДКАЯ (пшеничная) | B6: 150 | C6: 7.0 | D6: 3.5 | E6: 29.1 | F6: 175.1 | G6: № 105
A7: Кофейный напиток с молоком | B7: 150 | C7: 2.3 | D7: 1.8 | E7: 11.4 | F7: 71.3 | G7: № 2
A8: БУТЕРБРОД С ДЖЕМОМ ИЛИ ПОВИДЛОМ | B8: 30/5/20 | C8: 2.3 | D8: 3.7 | E8: 27.4 | F8: 156.7 | G8: № 2
A9: Батон | B9: 40 | C9: 3.0 | D9: 1.2 | E9: 20.6 | F9: 104.8
A10: ИТОГО ЗА ЗАВТРАК | B10: 395 | C10: =SUM(C6:C9) -> 14.6 | D10: =SUM(D6:D9) -> 10.2 | E10: =SUM(E6:E9) -> 88.5 | F10: =SUM(F6:F9) -> 507.9
A11: II Завтрак
A12: ФРУКТЫ СВЕЖИЕ (ЯБЛОКО) | B12: 200 | C12: 0.8 | D12: 0.8 | E12: 19.0 | F12: 91.2 | G12: № 368
A13: ИТОГО ЗА 2-й ЗАВТРАК | B13: 200 | C13: 0.8 | D13: 0.8 | E13: 19.0 | F13: 91.2
A14: Обед
A15: ОГУРЕЦ СОЛЕНЫЙ | B15: 30 | C15: 0.2 | D15: 0 | E15: 0.5 | F15: 3.9
A16: Щи из свежей капусты с картофелем на курином бульоне | B16: 150 | C16: 1.7 | D16: 3.0 | E16: 5.9 | F16: 57.7 | G16: № 47
A17: ПТИЦА, ТУШЕНАЯ В СОУСЕ С ОВОЩАМИ | B17: 150 | C17: 14.4 | D17: 13.6 | E17: 14.7 | F17: 241.5 | G17: № 66
A18: КОМПОТ ИЗ СУШЕННЫХ ФРУКТОВ | B18: 150 | C18: 0.0 | D18: 0.0 | E18: 11.6 | F18: 46.5 | G18: №376
A19: ХЛЕБ ПЕКЛЕВАННЫЙ | B19: 20 | C19: 1.3 | D19: 0.2 | E19: 8.5 | F19: 40.8
A20: ХЛЕБ ПШЕНИЧНЫЙ | B20: 20 | C20: 1.5 | D20: 0.1 | E20: 9.7 | F20: 46.0
A21: ИТОГО ЗА ОБЕД | B21: 520 | C21: 19.1 | D21: 16.9 | E21: 50.9 | F21: 436.4
A22: Уплотненный полдник
A23: СУФЛЕ ИЗ РЫБЫ | B23: 50 | C23: 6.5 | D23: 8.2 | E23: 2.1 | F23: 72.7 | G23: № 74
A24: ПЮРЕ КАРТОФЕЛЬНОЕ | B24: 110 | C24: 2.3 | D24: 3.3 | E24: 15.6 | F24: 104.9 | G24: № 321
A25: ЧАЙ С САХАРОМ, ВАРЕНЬЕМ, ДЖЕМОМ, МЕДОМ, ПОВИДЛОМ | B25: 180/10 | C25: 0.1 | D25: 0.0 | E25: 9.8 | F25: 39.4 | G25: № 392
A26: ХЛЕБ ПШЕНИЧНЫЙ | B26: 20 | C26: 1.5 | D26: 0.1 | E26: 9.7 | F26: 46.0
A27: БУЛОЧКА ванильная | B27: 50 | C27: 4.1 | D27: 3.9 | E27: 28.9 | F27: 167.3 | G27: № 467
A28: ИТОГО ЗА ПОЛДНИК | B28: 420 | C28: =SUM(C23:C27) -> 14.5 | D28: =SUM(D23:D27) -> 15.5 | E28: 66.1 | F28: 430.3
A29: Всего за день: | C29: =SUM(C28+C21+C13+C10) -> 49.0 | D29: =SUM(D28+D21+D13+D10) -> 43.4 | E29: =SUM(E28+E21+E13+E10) -> 224.5 | F29: =SUM(F28+F21+F13+F10) -> 1,465.8

Sheet 3-7 ЛЕТ
A1: Меню на 02.03.2026
A2: МОУ детский сад № 320 Ежеденевное 20-ти дневное меню (Зима - осень) для детей дошкольного возраста 3-7 лет, 12 часового режима функционирования
A3: Прием пищи, наименование блюда | B3: Масса порции | C3: Пищевые вещества | F3: Энергети-ческая ценность, ккал | G3: ТТК
C4: Белки, г | D4: Жиры, г | E4: Углеводы, г
A5: Завтрак
A6: КАША ЖИДКАЯ (ПШЕНИЧНАЯ) | B6: 180 | C6: 8.3 | D6: 4.2 | E6: 35.7 | F6: 213.4 | G6: № 105
A7: Кофейный напиток с молоком | B7: 200 | C7: 3.1 | D7: 2.4 | E7: 17.1 | F7: 103.1 | G7: № 395
A8: БУТЕРБРОД С ДЖЕМОМ ИЛИ ПОВИДЛОМ | B8: 30/5/20 | C8: 2.3 | D8: 3.7 | E8: 27.4 | F8: 156.7 | G8: № 2
A9: БАТОН | B9: 20 | C9: 1.5 | D9: 0.6 | E9: 10.3 | F9: 52.4
A10: ИТОГО ЗА ЗАВТРАК | B10: 455 | C10: 15.2 | D10: =SUM(D6:D9) -> 10.9 | E10: =SUM(E6:E9) -> 90.5 | F10: =SUM(F6:F9) -> 525.6
A11: II Завтрак
A12: ФРУКТЫ СВЕЖИЕ (ЯБЛОКО) | B12: 200 | C12: 0.8 | D12: 0.8 | E12: 19.0 | F12: 91.2 | G12: №368
A13: ИТОГО ЗА 2-й ЗАВТРАК | B13: 200 | C13: =SUM(C12) -> 0.8 | D13: =SUM(D12) -> 0.8 | E13: =SUM(E12) -> 19.0 | F13: =SUM(F12) -> 91.2
A14: Обед
A15: ОГУРЕЦ СОЛЕНЫЙ | B15: 50 | C15: 0.4 | D15: 0.1 | E15: 0.9 | F15: 6.5
A16: Щи из свежей капусты с картофелем на курином бульоне | B16: 180 | C16: 2.0 | D16: 3.6 | E16: 7.2 | F16: 70.2 | G16: № 47
A17: ПТИЦА, ТУШЕНАЯ В СОУСЕ С ОВОЩАМИ | B17: 150 | C17: 14.4 | D17: 13.6 | E17: 14.7 | F17: 241.5 | G17: № 66
A18: КОМПОТ ИЗ СУШЕНЫХ ФРУКТОВ | B18: 180 | C18: 0.0 | D18: 0.0 | E18: 14.0 | F18: 55.8 | G18: № 376
A19: ХЛЕБ ПЕКЛЕВАННЫЙ | B19: 40 | C19: 2.6 | D19: 0.4 | E19: 17.0 | F19: 81.6
A20: ПЕЧЕНЬЕ ШОКОЛАДНОЕ | B20: 30 | C20: 2.3 | D20: 2.9 | E20: 22.3 | F20: 125.1
A21: ИТОГО ЗА ОБЕД | B21: 630 | C21: 21.7 | D21: 20.6 | E21: 76.1 | F21: 580.7
A22: Уплотнённый полдник
A23: СУФЛЕ ИЗ РЫБЫ | B23: 70 | C23: 11.8 | D23: 6.6 | E23: 3.1 | F23: 122.6 | G23: № 74
A24: ПЮРЕ КАРТОФЕЛЬНОЕ | B24: 130 | C24: 2.7 | D24: 3.9 | E24: 18.5 | F24: 124.4 | G24: № 321
A25: ЧАЙ С САХАРОМ, ВАРЕНЬЕМ, ДЖЕМОМ, МЕДОМ, ПОВИДЛОМ | B25: 190/10 | C25: 0.1 | D25: 0.0 | E25: 9.8 | F25: 39.4 | G25: № 392
A26: ХЛЕБ ПШЕНИЧНЫЙ | B26: 40 | C26: 3.1 | D26: 0.2 | E26: 20.1 | F26: 94.7
A27: БУЛОЧКА веснушка | B27: 50 | C27: 4.1 | D27: 3.9 | E27: 28.9 | F27: 167.3 | G27: № 467
A28: ИТОГО ЗА ПОЛДНИК | B28: 490 | C28: 21.8 | D28: 14.6 | E28: 80.4 | F28: 548.4
A29: Всего за день: | C29: =SUM(C28+C21+C13+C10) -> 59.5 | D29: =SUM(D28+D21+D13+D10) -> 46.9 | E29: =SUM(E28+E21+E13+E10) -> 266.0 | F29: =SUM(F28+F21+F13+F10) -> 1,745.9

Sheet Лист3
